Cogmind - Beta 15 @@@ ROGUE MODE // 2025.07.13 @ 09:06:33 Player: CSF Result: Destroyed by G-73 Enforcer with Phase Gun Performance ------------- Evolutions (9) 4500 Regions Visited (28) 5600 Robots Destroyed (174) 870 Value Destroyed (3543) 3543 Prototype IDs (25) 500 Alien Tech Used (4) 800 Bonus (378) 378 TOTAL SCORE: 16191 Bonus ------- High Alert Combat Kills 11 Follower Combat Kills 100 Met Zhirov 300 Friendly Fire -33 Cogmind --------- Core Integrity 0/1600 Matter 30/300 Energy 20/100 System Corruption 0% Temperature Cool (9) Movement Core (50) Location -1/Access Parts ------- > --- POWER (2) -------- (None) > --- PROPULSION (9) --- (None) > --- UTILITY (12) ----- (None) > --- WEAPON (2) ------- (None) > --- INVENTORY (5) ---- Medium Storage Unit Structural Scanner Improved Reaction Control System Subatomic Replicator Power Maul Peak State ------------ > --- POWER ------------ Light Ion Engine Micro Antimatter Reactor > --- PROPULSION ------- Field Propulsion Drive Cooled Nuclear Pulse Thruster Cooled Nuclear Pulse Thruster Cooled Nuclear Pulse Thruster Nuclear Pulse Array Impulse Thruster Field Propulsion Array > --- UTILITY ---------- Experimental Power Amplifier Large Storage Unit Advanced Sensor Array Advanced Signal Interpreter Advanced Reaction Control System Concept Antimissile System Hacking Suite Hacking Suite Improved System Shield Ghost Barrier > --- WEAPON ----------- Sigix Broadsword > --- INVENTORY -------- Angular Momentum Engine Impulse Thruster Q-thruster Q-thruster Medium Storage Unit Structural Scanner Stasis Canceller Improved Propulsion Shielding Layered Medium Armor Plating Transdimensional Reconstructor Subatomic Replicator Enhanced Hardcell Cannon Mini Grenade Launcher Power Maul [Rating: 162] Favorites ----------- Power Light Ion Engine Engine Light Ion Engine Power Core Light Nuclear Core Reactor Micro Antimatter Reactor Propulsion Light Treads Treads Light Treads Leg Aluminum Leg Wheel Armored Wheel Hover Unit Improved Antigrav System Flight Unit Improved VTOL Module Utility Hacking Suite Device Structural Scanner Storage Large Storage Unit Processor Improved Signal Interpreter Hackware Hacking Suite Protection Improved Light Armor Plating Weapon Improved Assault Rifle Energy Gun Beam Rifle Energy Cannon Core Cannon Ballistic Gun Improved Assault Rifle Ballistic Cannon Light Cannon Launcher Mini Grenade Launcher Impact Weapon Hammer Slashing Weapon Katana Build | -11 -10 -10 -9 -9 -8 -7 -7 -7 -5 -5 -5 -5 -5 -5 -4 -4 -4 -4 -4 -4 -4 -3 -3 -3 -2 -2 -2 -1 ------- Run | Yrd Mat Min Mat Min Mat Fac Sto Rec Fac Was Fac Upp Upp War Pro Fac Was Fac Upp Upp Zhi Pro Res Tes Res Qua Frg Acc Slots Evolved 18 | . . . 2 . 2 2 . . 4 . . . . . . 2 . . . . . . 2 . 2 . . 2 Power 1 | . . . . . . . . . . . . . . . . 1 . . . . . . . . . . . . Propulsion 7 | . . . 1 . 1 1 . . 1 . . . . . . 1 . . . . . . 1 . 1 . . . Utility 10 | . . . 1 . 1 1 . . 3 . . . . . . . . . . . . . 1 . 1 . . 2 Weapon . | . . . . . . . . . . . . . . . . . . . . . . . . . . . . . Parts Attached 147 | 1 22 4 26 4 15 9 . . 4 . 4 . 4 1 . . 1 9 . . 7 . 4 3 1 7 10 11 Power 15 | . 3 . 3 1 2 . . . . . . . 1 . . . . 2 . . 1 . . . . 1 1 . Engine 8 | . 3 . 1 1 1 . . . . . . . . . . . . 1 . . . . . . . 1 . . Core 4 | . . . 2 . 1 . . . . . . . 1 . . . . . . . . . . . . . . . Reactor 3 | . . . . . . . . . . . . . . . . . . 1 . . 1 . . . . . 1 . Propulsion 59 | . 7 . 16 1 8 4 . . 1 . . . 2 1 . . . 2 . . 3 . 1 . . 1 3 9 Treads 27 | . 5 . 15 1 6 . . . . . . . . . . . . . . . . . . . . . . . Leg . | . . . . . . . . . . . . . . . . . . . . . . . . . . . . . Wheel 3 | . 1 . 1 . 1 . . . . . . . . . . . . . . . . . . . . . . . Hover 4 | . . . . . . . . . . . . . . . . . . . . . . . . . . . . 4 Flight 25 | . 1 . . . 1 4 . . 1 . . . 2 1 . . . 2 . . 3 . 1 . . 1 3 5 Utility 49 | 1 7 1 3 1 2 3 . . 3 . 4 . 1 . . . 1 5 . . 2 . 3 3 1 2 5 1 Device 24 | 1 2 1 . . 2 1 . . . . 3 . 1 . . . 1 1 . . 1 . 3 2 1 . 3 1 Storage 6 | . 3 . . . . 1 . . . . . . . . . . . 1 . . . . . . . . 1 . Processor 3 | . . . . 1 . . . . 1 . . . . . . . . 1 . . . . . . . . . . Hackware 8 | . . . . . . 1 . . 2 . 1 . . . . . . . . . . . . 1 . 2 1 . Protection 8 | . 2 . 3 . . . . . . . . . . . . . . 2 . . 1 . . . . . . . Artifact . | . . . . . . . . . . . . . . . . . . . . . . . . . . . . . Weapon 24 | . 5 3 4 1 3 2 . . . . . . . . . . . . . . 1 . . . . 3 1 1 Energy Gun 2 | . 1 . . . . . . . . . . . . . . . . . . . . . . . . . . 1 Energy Cannon 1 | . . . . . . . . . . . . . . . . . . . . . . . . . . 1 . . Ballistic Gun 10 | . 2 1 4 . 3 . . . . . . . . . . . . . . . . . . . . . . . Ballistic Cannon 3 | . 1 . . 1 . . . . . . . . . . . . . . . . . . . . . 1 . . Launcher 2 | . . 1 . . . 1 . . . . . . . . . . . . . . . . . . . . . . Special Weapon . | . . . . . . . . . . . . . . . . . . . . . . . . . . . . . Impact Weapon 2 | . 1 . . . . . . . . . . . . . . . . . . . . . . . . . 1 . Slashing Weapon 4 | . . 1 . . . 1 . . . . . . . . . . . . . . 1 . . . . 1 . . Piercing Weapon . | . . . . . . . . . . . . . . . . . . . . . . . . . . . . . Special Melee Weapon . | . . . . . . . . . . . . . . . . . . . . . . . . . . . . . Unidentified Prototypes 18 | . 1 . 1 . 1 . . . . . . . . . . . . . . . 5 . 1 1 . 2 6 . Parts Lost 51 | . 2 . 1 . 2 . . . . . 2 3 . 3 3 2 . . . . . 3 2 . . . 17 11 Power 6 | . . . 1 . . . . . . . . 1 . . 1 . . . . . . . . . . . 3 . Propulsion 23 | . . . . . . . . . . . . 2 . 2 . 2 . . . . . . . . . . 8 9 Utility 16 | . 1 . . . . . . . . . 2 . . 1 2 . . . . . . 2 2 . . . 5 1 Weapon 6 | . 1 . . . 2 . . . . . . . . . . . . . . . . 1 . . . . 1 1 Highest Loss Streak 17 | . 1 . 1 . 1 . . . . . 2 3 . 3 6 2 . . . . . 2 2 . . . 17 6 To Critical Strikes 1 | . . . . . . . . . . . . . . . . . . . . . . . . . . . 1 . Average Backups 12 | 6 9 15 14 15 14 10 10 10 7 7 7 8 9 7 8 9 9 8 9 10 12 14 14 15 14 14 11 4 Power . | 1 . 1 . 1 1 1 1 1 1 1 1 1 . . . . . . 1 1 1 2 2 2 2 1 . . Propulsion 3 | 4 3 6 4 3 3 2 3 3 2 2 2 2 1 . . . . . . . 1 3 3 4 3 3 2 . Utility 4 | . 1 5 6 7 4 4 4 4 2 2 1 1 2 3 3 4 4 4 4 5 5 4 4 5 5 6 4 2 Weapon 3 | 1 2 2 3 4 4 2 2 2 2 2 3 4 5 4 4 5 5 4 4 4 3 3 3 3 3 3 2 1 Tool/Special . | . . . . . . . . . . . . . . . . . . . . . . . . . . . . . Unused Backups 43 | 6 11 3 2 1 3 3 . . . . . . 3 . . . . 2 . . . . 1 . . 5 1 2 Power 4 | 1 1 1 . . . . . . . . . . . . . . . . . . . . . . . 1 . . Propulsion 12 | 2 5 . 1 . 1 1 . . . . . . . . . . . 1 . . . . 1 . . . . . Utility 11 | 1 1 1 . . 1 1 . . . . . . . . . . . 1 . . . . . . . 3 1 1 Weapon 15 | 2 4 1 1 1 1 1 . . . . . . 3 . . . . . . . . . . . . 1 . . Tool/Special 1 | . . . . . . . . . . . . . . . . . . . . . . . . . . . . 1 Average Slot Usage (%) 91 | . 98 100 99 100 99 95 100 100 88 94 89 93 92 90 61 49 42 62 78 78 79 72 74 78 80 85 66 8 Engine 5 | . 14 14 6 11 4 . . . . . . . . . . . . . . . . . . . . 3 3 . Core 2 | . . . 4 . 4 7 7 7 5 5 5 5 4 5 . . . . . . . . . . . . . . Treads 15 | . 22 14 27 26 27 . . . . . . . . . . . . . . . . . . . . . . . Wheel 4 | . 4 14 5 6 9 . . . . . . . . . . . . . . . . . . . . . . . Flight 11 | . . . . . . 36 38 38 35 35 35 34 33 33 29 23 15 21 26 26 26 26 27 28 30 29 23 1 Device 9 | . 3 14 11 7 12 15 15 15 11 11 9 17 17 15 1 . . 5 10 10 10 5 10 15 15 15 10 1 Storage 9 | . 14 14 11 11 9 7 7 7 5 5 5 5 5 5 5 5 5 5 5 5 5 5 4 4 4 4 3 . Processor 3 | . . . . 3 9 7 7 7 5 5 5 5 5 5 5 5 5 5 5 5 5 5 4 4 4 4 3 . Hackware 5 | . . . . . . 6 7 7 11 17 18 17 17 17 17 15 15 15 15 15 15 11 9 10 13 18 15 . Protection 5 | . 10 . 9 11 5 . . . . . . . . . . . . 2 5 5 5 9 6 4 4 . . . Ballistic Gun 10 | . 16 14 21 19 13 . . . . . . . . . . . . . . . . . . . . . . . Ballistic Cannon 3 | . 10 12 . 2 4 . . . . . . . . . . . . . . . . . . . . . . . Slashing Weapon 1 | . . . . . . 6 7 7 5 5 5 5 5 5 . . . 4 5 5 5 2 4 4 4 3 2 . Peak Build Rating 162 | 9 10 12 20 25 29 39 39 39 48 48 52 52 55 55 47 33 35 87 86 86 109 99 111 117 125 152 162 35 Average Rating 37 | 8 7 11 16 20 26 37 39 39 47 48 46 51 53 50 33 32 28 60 85 86 94 93 105 111 123 145 114 16 On Entrance 54 | 6 9 10 12 19 25 25 39 39 39 48 48 52 43 55 45 33 28 35 85 86 86 99 96 109 117 125 152 2 Naked Turns 93 | . . . . . . . . . . . . . . . . . . . . . . . . . . . 53 40 Heaviest Build 90 | 12 90 30 37 39 40 22 20 20 20 20 22 22 22 22 10 10 12 51 33 33 43 46 50 50 50 56 51 6 Greatest Support 68 | 20 40 12 60 68 68 25 25 25 25 25 31 26 25 25 10 15 15 43 43 43 46 55 60 62 67 59 59 24 Greatest Overweight (x) 7 | . 7 2 3 . 2 . . . . . . . . 1 . 3 . 1 . . . . . . . . . 1 Average Overweight (x) . | . . 2 1 . 1 . . . . . . . . . . . . . . . . . . . . . . . Largest Inventory Capacity 25 | 8 25 15 15 15 15 15 10 10 10 10 10 10 10 10 10 10 10 10 10 10 15 15 15 15 15 15 25 5 Average Capacity 12 | 8 10 15 15 15 15 10 10 10 10 10 10 10 10 10 10 10 10 10 10 10 12 15 15 15 15 15 12 5 Most Carried 15 | 7 15 15 15 15 15 15 10 10 9 7 8 10 10 8 10 10 10 10 10 10 15 15 15 15 14 15 15 5 Average Carried 12 | 6 9 14 14 15 14 9 10 10 7 7 7 8 9 7 8 10 10 9 9 10 12 14 14 14 14 14 11 4 Final Capacity 15 | 8 15 15 15 15 15 10 10 10 10 10 10 10 10 10 10 10 10 10 10 10 15 15 15 15 15 15 5 5 Final Carried 15 | 7 15 15 15 15 15 10 10 10 7 7 8 10 8 7 10 10 10 9 10 10 15 13 15 15 14 14 4 5 Class Distribution -------------------- 31% | Mutant 30% | Scavenger-Mutant 16% | Hacker-Sprinter 6% | Scavenger-Scout 4% | Scavenger-Skirmisher 4% | Hacker-Scout 3% | Hacker-Mutant Dominant Class ---------------- Mutant | -10/Materials Mutant | -10/Mines Scavenger-Mutant | -9/Materials Scavenger-Mutant | -9/Mines Scavenger-Mutant | -8/Materials Scavenger-Scout | -7/Factory Scavenger-Scout | -7/Storage Scavenger-Scout | -7/Recycling Scavenger-Scout | -5/Factory Hacker-Scout | -5/Waste Hacker-Scout | -5/Factory Hacker-Sprinter | -5/Upper Caves Hacker-Sprinter | -5/Upper Caves Hacker-Sprinter | -5/Warlord Hacker-Mutant | -4/Proximity Caves Hacker-Sprinter | -4/Factory Hacker-Mutant | -4/Waste Hacker-Sprinter | -4/Factory Hacker-Sprinter | -4/Upper Caves Hacker-Sprinter | -4/Upper Caves Hacker-Sprinter | -4/Zhirov Hacker-Sprinter | -3/Proximity Caves Hacker-Sprinter | -3/Research Hacker-Sprinter | -3/Testing Hacker-Scout | -2/Research Hacker-Scout | -2/Quarantine Mutant | -2/Protoforge Mutant | -1/Access Resources | -11 -10 -10 -9 -9 -8 -7 -7 -7 -5 -5 -5 -5 -5 -5 -4 -4 -4 -4 -4 -4 -4 -3 -3 -3 -2 -2 -2 -1 ----------- Run | Yrd Mat Min Mat Min Mat Fac Sto Rec Fac Was Fac Upp Upp War Pro Fac Was Fac Upp Upp Zhi Pro Res Tes Res Qua Frg Acc Matter Collected 4402 | 262 848 134 1089 189 852 140 . . . . 15 89 60 . 70 . . 50 55 . 75 164 181 45 . 80 4 . Remotely . | . . . . . . . . . . . . . . . . . . . . . . . . . . . . . Salvage Created 6278 | 263 1220 93 1586 339 890 228 20 294 . . 15 40 58 . 13 . . 595 11 . 75 94 395 29 . 20 . . Parts 366 | 18 84 10 100 21 52 15 3 7 . . 2 1 4 . . . . 14 . . 1 7 15 4 . 8 . . Haulers Intercepted 13 | . 2 . 5 . 5 . . . . . . . . . . . . . . . . . 1 . . . . . Recyclers Shooed 12 | . 5 . 1 . 2 . . . . . . . . . . . . 4 . . . . . . . . . . Parts Field Recycled . | . . . . . . . . . . . . . . . . . . . . . . . . . . . . . Retrieved Matter . | . . . . . . . . . . . . . . . . . . . . . . . . . . . . . Parts Self-Destructed 6 | . . . . . . . . . . . . . 1 . . . . . . . 1 4 . . . . . . Prevented . | . . . . . . . . . . . . . . . . . . . . . . . . . . . . . Kills | -11 -10 -10 -9 -9 -8 -7 -7 -7 -5 -5 -5 -5 -5 -5 -4 -4 -4 -4 -4 -4 -4 -3 -3 -3 -2 -2 -2 -1 ------- Run | Yrd Mat Min Mat Min Mat Fac Sto Rec Fac Was Fac Upp Upp War Pro Fac Was Fac Upp Upp Zhi Pro Res Tes Res Qua Frg Acc Combat Hostiles Destroyed 90 | . 21 3 22 10 15 3 . . . . . . 5 . 4 . . . . . . 7 . . . . . . Guns 48 | . 17 . 22 5 4 . . . . . . . . . . . . . . . . . . . . . . . Cannons 13 | . 4 . . 1 8 . . . . . . . . . . . . . . . . . . . . . . . AOE 29 | . . 3 . 4 3 3 . . . . . . 5 . 4 . . . . . . 7 . . . . . . Classes Destroyed 13 | 3 6 . 1 1 1 . . . . . . 1 . . . . . . . . . . . . . . . . Worker 17 | 2 4 . 4 . 1 1 . . . . . . . . . . . 2 . . . . 2 . . 1 . . Builder 8 | . 2 . . . 1 2 . . . . 1 . . . . . . . . . . . . 2 . . . . Tunneler 9 | 5 2 1 . . . . . . . . . . . . . . . 1 . . . . . . . . . . Hauler 13 | . 2 . 5 . 5 . . . . . . . . . . . . . . . . . 1 . . . . . Recycler 26 | 1 4 1 5 1 2 2 . 4 . . . . . . . . . 4 . . . . 2 . . . . . Operator 6 | . 3 . 1 . . . 1 . . . . . . . . . . . . . . . . . . 1 . . Watcher 5 | . 1 . 2 . 2 . . . . . . . . . . . . . . . . . . . . . . . Swarmer 41 | . 6 3 6 4 3 3 . . . . . . 5 . 4 . . . . . . 7 . . . . . . Grunt 32 | . 15 . 8 5 4 . . . . . . . . . . . . . . . . . . . . . . . Duelist 1 | . . . . 1 . . . . . . . . . . . . . . . . . . . . . . . . Sentry 14 | . . . 8 . 6 . . . . . . . . . . . . . . . . . . . . . . . Hunter 2 | . . . . . 2 . . . . . . . . . . . . . . . . . . . . . . . Decomposer 2 | . . . . . . . . . . . . 1 . . . . . . 1 . . . . . . . . . Samaritan 1 | . . . . . . . . . . . . 1 . . . . . . . . . . . . . . . . Best Kill Streak 7 | 6 5 3 4 5 4 6 1 2 . . 1 . 5 . 4 . . 4 . . . 7 2 2 . 2 . . Combat Bots Only 7 | . 5 3 4 4 3 3 . . . . . . 5 . 4 . . . . . . 7 . . . . . . Max Kills in Single Turn 4 | 1 2 2 2 4 2 2 1 1 . . 1 1 3 . 1 . . 1 1 . . 2 1 1 . 1 . . Gunslinging 1 | . . . 1 . . . . . . . . . . . . . . . . . . . . . . . . . Exploded 3 | . . 2 . 3 1 1 . . . . . . 3 . 1 . . . . . . 2 . . . . . . Melee . | . . . . . . . . . . . . . . . . . . . . . . . . . . . . . Uniques/NPCs Destroyed . | . . . . . . . . . . . . . . . . . . . . . . . . . . . . . Combat | -11 -10 -10 -9 -9 -8 -7 -7 -7 -5 -5 -5 -5 -5 -5 -4 -4 -4 -4 -4 -4 -4 -3 -3 -3 -2 -2 -2 -1 -------- Run | Yrd Mat Min Mat Min Mat Fac Sto Rec Fac Was Fac Upp Upp War Pro Fac Was Fac Upp Upp Zhi Pro Res Tes Res Qua Frg Acc Hostile Shots Fired 969 | . 98 . 136 33 100 50 2 2 . . 5 22 7 10 16 2 . 2 . 4 . 31 52 13 . 14 207 163 Missed 406 | . 26 . 30 7 29 41 1 1 . . 1 11 1 5 8 . . 2 . 2 . 13 34 10 . 11 109 64 Hits 563 | . 72 . 106 26 71 9 1 1 . . 4 11 6 5 8 2 . . . 2 . 18 18 3 . 3 98 99 Melee 3 | . . . . 3 . . . . . . . . . . . . . . . . . . . . . . . . Projectile 560 | . 72 . 106 23 71 9 1 1 . . 4 11 6 5 8 2 . . . 2 . 18 18 3 . 3 98 99 AOE 1 | . . . . . . . . . . . . . . . . . . . . . . . . . . . . 1 Critical Strikes 21 | . 1 . 3 1 3 . . . . . . . . . . 1 . . . . . . 2 1 . . 8 1 Part Disruptions 1 | . . . . . . . . . . . . . . 1 . . . . . . . . . . . . . . Damage Taken 10521 | . 916 30 1394 343 1017 111 17 22 . . 101 195 114 276 176 39 . . . 37 . 484 342 65 49 71 2407 2315 Core 3599 | . 77 . 130 52 232 71 . . . . 18 53 44 115 68 . . . . . . 47 48 . 49 . 972 1623 Absorbed by Shields . | . . . . . . . . . . . . . . . . . . . . . . . . . . . . . Redirected to Shielding 167 | . . . . . . . . . . . . . . . . . . . . . . 144 23 . . . . . Regen/Repaired (Parts) 683 | . 290 . 173 . . . . . . . . . . . . . . . . . . . . . . 49 171 . Core Remaining (%) 72 | 100 . 69 . 54 57 . . 89 . . . . . . 70 . . . . . . 95 . 96 . . 25 . Volleys Fired 373 | 13 119 8 104 16 83 4 . . . . . . 2 . 7 . . . . . . 11 . . . 3 . 3 Largest 2 | 2 2 2 2 2 2 1 . . . . . . 1 . 1 . . . . . . 1 . . . 1 . 1 Hottest 76 | 40 76 55 48 63 63 30 . . . . . . 30 . 30 . . . . . . 30 . . . 58 . 65 Shots Fired 698 | 26 231 13 206 29 162 4 . . . . 1 . 2 . 7 . . . . . . 11 . . . 3 . 3 Gun 546 | 26 166 5 204 25 117 . . . . . . . . . . . . . . . . . . . . . . 3 Cannon 116 | . 65 5 . 1 42 . . . . . . . . . . . . . . . . . . . . 3 . . Launcher 36 | . . 3 2 3 3 4 . . . . 1 . 2 . 7 . . . . . . 11 . . . . . . Special . | . . . . . . . . . . . . . . . . . . . . . . . . . . . . . Kinetic 655 | 26 227 10 204 26 159 . . . . . . . . . . . . . . . . . . . . 3 . . Thermal 7 | . 4 . . . . . . . . . . . . . . . . . . . . . . . . . . 3 Explosive 36 | . . 3 2 3 3 4 . . . . 1 . 2 . 7 . . . . . . 11 . . . . . . Electromagnetic . | . . . . . . . . . . . . . . . . . . . . . . . . . . . . . Robot Hit Streak 25 | 6 14 3 25 11 21 1 . . . . 2 . . . . . . . . . . 3 . . . . . 1 Robot Miss Streak 5 | 2 4 2 3 3 5 1 . . . . . . . . 1 . . . . . . 4 . . . . . 1 Penetration Max . | . . . . . . . . . . . . . . . . . . . . . . . . . . . . . Secondary Targets 4 | . 1 . 2 1 . . . . . . . . . . . . . . . . . . . . . . . . Max Gunslinging Chain 1 | . 1 . 1 1 . . . . . . . . . . . . . . . . . . . . . . . . Shots Hit Robots 480 | 13 142 5 139 21 102 5 2 6 . . 4 3 . . . . . 19 1 . 2 3 5 4 . 2 1 1 Core Hits 256 | 9 64 8 62 16 41 10 1 3 . . 1 1 7 . 5 . . 7 . . 1 13 4 2 . 1 . . Critical Kills 1 | . . . . . 1 . . . . . . . . . . . . . . . . . . . . . . . Critical Parts Destroyed 2 | . 1 . . . 1 . . . . . . . . . . . . . . . . . . . . . . . Critical Strikes 11 | . 3 . 1 . 6 . . . . . . . . . . . . 1 . . . . . . . . . . Destroy 3 | . . . 1 . 2 . . . . . . . . . . . . . . . . . . . . . . . Blast 6 | . 2 . . . 4 . . . . . . . . . . . . . . . . . . . . . . . Smash 1 | . 1 . . . . . . . . . . . . . . . . . . . . . . . . . . . Sever 1 | . . . . . . . . . . . . . . . . . . 1 . . . . . . . . . . Melee Attacks 174 | . 2 1 . . . 17 6 12 2 . 15 4 . . . . . 32 1 5 2 1 25 14 8 16 11 . Impact 4 | . 2 1 . . . . . . . . . . . . . . . . . . . . . . . . 1 . Slashing 170 | . . . . . . 17 6 12 2 . 15 4 . . . . . 32 1 5 2 1 25 14 8 16 10 . Piercing . | . . . . . . . . . . . . . . . . . . . . . . . . . . . . . Sneak Attacks 33 | . 1 . . . . 3 1 5 . . 2 3 . . . . . 9 1 . . . 5 2 . 1 . . Combat Hostiles . | . . . . . . . . . . . . . . . . . . . . . . . . . . . . . Follow-up Attacks . | . . . . . . . . . . . . . . . . . . . . . . . . . . . . . Damage Inflicted 12656 | 164 1851 206 2195 511 2152 551 117 392 . . 215 214 304 . 510 . . 956 78 . 177 815 474 314 . 367 64 29 Guns 4946 | 164 1077 31 2195 305 1145 . . . . . . . . . . . . . . . . . . . . . . 29 Cannons 1524 | . 609 51 . 26 838 . . . . . . . . . . . . . . . . . . . . . . . Explosions 2565 | . 122 124 . 180 162 294 . . . . 54 . 304 . 510 . . . . . . 815 . . . . . . Melee 3614 | . 43 . . . . 257 117 392 . . 161 214 . . . . . 956 78 . 177 . 474 314 . 367 64 . Ramming 7 | . . . . . 7 . . . . . . . . . . . . . . . . . . . . . . . Kinetic 6412 | 164 1657 82 2195 331 1983 . . . . . . . . . . . . . . . . . . . . . . . Thermal 180 | . 151 . . . . . . . . . . . . . . . . . . . . . . . . . . 29 Explosive 2443 | . . 124 . 180 162 294 . . . . 54 . 304 . 510 . . . . . . 815 . . . . . . Electromagnetic . | . . . . . . . . . . . . . . . . . . . . . . . . . . . . . Impact 43 | . 43 . . . . . . . . . . . . . . . . . . . . . . . . . . . Slashing 3571 | . . . . . . 257 117 392 . . 161 214 . . . . . 956 78 . 177 . 474 314 . 367 64 . Piercing . | . . . . . . . . . . . . . . . . . . . . . . . . . . . . . Highest Corruption 11 | . . . . . . . . . . 9 9 9 9 9 1 . . 1 1 1 1 1 1 1 . 1 11 . Average Corruption 3 | . . . . . . . . . . 9 9 9 9 8 1 . . 1 1 1 1 1 1 1 . 1 3 . Corruption Purged . | . . . . . . . . . . . . . . . . . . . . . . . . . . . . . Corruption Blocked . | . . . . . . . . . . . . . . . . . . . . . . . . . . . . . Effects 36 | . . . . . . . . . . 1 8 5 5 . 2 . . . . . 2 1 1 2 . 1 8 . Message Errors 7 | . . . . . . . . . . 1 2 1 1 . . . . . . . . . . 1 . . 1 . Matter Fused 8 | . . . . . . . . . . . 2 3 . . . . . . . . . . . 1 . 1 1 . Heat Flow Errors 4 | . . . . . . . . . . . . . 2 . . . . . . . . 1 1 . . . . . Energy Discharges 6 | . . . . . . . . . . . . . 1 . 1 . . . . . . . . . . . 4 . Parts Fused 1 | . . . . . . . . . . . . . . . . . . . . . . . . . . . 1 . Data Loss (minor) 5 | . . . . . . . . . . . 1 1 1 . . . . . . . 2 . . . . . . . Data Loss (major) 1 | . . . . . . . . . . . . . . . 1 . . . . . . . . . . . . . Misfires 1 | . . . . . . . . . . . 1 . . . . . . . . . . . . . . . . . Alerts 2 | . . . . . . . . . . . 2 . . . . . . . . . . . . . . . . . Misdirections 1 | . . . . . . . . . . . . . . . . . . . . . . . . . . . 1 . Overload Shots . | . . . . . . . . . . . . . . . . . . . . . . . . . . . . . Overflow Damage 1126 | . 69 . . . 7 45 . 113 . . 3 116 . . 67 . . 192 69 . 81 18 62 80 . 195 9 . Projectiles 13 | . 6 . . . 7 . . . . . . . . . . . . . . . . . . . . . . . Explosions 108 | . 20 . . . . . . . . . 3 . . . 67 . . . . . . 18 . . . . . . Melee 1005 | . 43 . . . . 45 . 113 . . . 116 . . . . . 192 69 . 81 . 62 80 . 195 9 . Knockbacks 13 | . 9 1 . . 3 . . . . . . . . . . . . . . . . . . . . . . . Impact . | . . . . . . . . . . . . . . . . . . . . . . . . . . . . . Kinetic 13 | . 9 1 . . 3 . . . . . . . . . . . . . . . . . . . . . . . Secondary . | . . . . . . . . . . . . . . . . . . . . . . . . . . . . . Self-Inflicted Damage 266 | . 74 . . 19 . . . . . . 37 . 26 . 67 . . . . . . 43 . . . . . . Shots 7 | . 1 . . 1 . . . . . . 1 . 1 . 2 . . . . . . 1 . . . . . . Rammed . | . . . . . . . . . . . . . . . . . . . . . . . . . . . . . Targets Rammed 1 | . . . . . 1 . . . . . . . . . . . . . . . . . . . . . . . Kicked . | . . . . . . . . . . . . . . . . . . . . . . . . . . . . . Crushed 1 | . . . . . 1 . . . . . . . . . . . . . . . . . . . . . . . Highest Temperature 455 | . 127 14 42 4 38 . 7 5 . . 4 2 276 455 . . . 28 . 15 . 197 223 45 78 . 382 . Average Temperature 39 | . 23 9 11 1 15 . 5 3 . . 2 2 147 239 . . . 15 . 7 . 78 92 12 48 . 188 . Received Heat Transfer 2313 | . 435 . 558 96 387 12 9 12 . . 9 9 . . . . . . . 21 . 12 36 . . . 561 156 Siege Activations . | . . . . . . . . . . . . . . . . . . . . . . . . . . . . . Martial Activations . | . . . . . . . . . . . . . . . . . . . . . . . . . . . . . Shielding Activations . | . . . . . . . . . . . . . . . . . . . . . . . . . . . . . Robots Disrupted . | . . . . . . . . . . . . . . . . . . . . . . . . . . . . . Combat Hostiles . | . . . . . . . . . . . . . . . . . . . . . . . . . . . . . Robots Corrupted . | . . . . . . . . . . . . . . . . . . . . . . . . . . . . . Combat Hostiles . | . . . . . . . . . . . . . . . . . . . . . . . . . . . . . Parts Fried 1 | . 1 . . . . . . . . . . . . . . . . . . . . . . . . . . . Impact Corruptions 1 | . 1 . . . . . . . . . . . . . . . . . . . . . . . . . . . Robots Melted . | . . . . . . . . . . . . . . . . . . . . . . . . . . . . . Combat Hostiles . | . . . . . . . . . . . . . . . . . . . . . . . . . . . . . Parts Melted . | . . . . . . . . . . . . . . . . . . . . . . . . . . . . . Heat Transferred 211 | . 174 . . . . . . . . . . . . . . . . . . . . . . . . . . 37 Parts Sabotaged . | . . . . . . . . . . . . . . . . . . . . . . . . . . . . . Parts Stolen . | . . . . . . . . . . . . . . . . . . . . . . . . . . . . . Parts Stripped . | . . . . . . . . . . . . . . . . . . . . . . . . . . . . . Power Chain Reactions . | . . . . . . . . . . . . . . . . . . . . . . . . . . . . . Alert | -11 -10 -10 -9 -9 -8 -7 -7 -7 -5 -5 -5 -5 -5 -5 -4 -4 -4 -4 -4 -4 -4 -3 -3 -3 -2 -2 -2 -1 ------- Run | Yrd Mat Min Mat Min Mat Fac Sto Rec Fac Was Fac Upp Upp War Pro Fac Was Fac Upp Upp Zhi Pro Res Tes Res Qua Frg Acc Maximum Alert Level 2 | . 1 . 2 1 1 . . . . . 1 . . . . . . . . . . . 2 2 1 1 . . Low Security (%) 60 | 100 44 100 32 73 71 100 100 100 100 100 95 . . . . 100 100 100 . . . . . . . 46 100 100 Level 1 36 | . 55 . 65 26 28 . . . . . 4 . . . . . . . . . . . 5 86 100 53 . . Level 2 2 | . . . 2 . . . . . . . . . . . . . . . . . . . 94 13 . . . . Level 3 . | . . . . . . . . . . . . . . . . . . . . . . . . . . . . . Level 4 . | . . . . . . . . . . . . . . . . . . . . . . . . . . . . . Level 5 . | . . . . . . . . . . . . . . . . . . . . . . . . . . . . . High Security . | . . . . . . . . . . . . . . . . . . . . . . . . . . . . . Max Security . | . . . . . . . . . . . . . . . . . . . . . . . . . . . . . Peak Influence 545 | 10 347 110 403 234 266 139 133 48 17 2 200 . . . . 33 1 33 . . . . 545 434 248 316 183 30 Initial 428 | . . 108 17 152 62 60 63 47 . 2 . . . . . 18 1 . . . . . 428 306 234 135 171 7 Average 175 | 2 202 70 244 183 171 87 93 16 7 1 88 . . . . 25 . 5 . . . . 439 334 240 214 125 3 Influence Increases 5402 | 40 814 107 961 262 539 209 90 27 17 . 298 90 110 . 90 15 . 90 . 45 10 280 517 212 36 321 162 60 Destroy 0b10 Robot/C 1880 | . 420 60 520 200 300 60 . . . . . . 100 . 80 . . . . . . 140 . . . . . . Destroy 0b10 Robot/NC 450 | 40 90 10 105 5 55 25 5 20 . . 5 . . . . . . 35 . . 10 . 25 10 . 10 . . Destroy Leader 478 | . 96 10 166 40 114 10 . . . . . . 10 . 10 . . . . . . 20 2 . . . . . Allied During Kill 28 | . . 8 20 . . . . . . . . . . . . . . . . . . . . . . . . . Successful Hack 340 | . 36 . 31 . 39 45 22 . . . 30 . . . . . . 33 . . . . . 21 . 68 15 . Disable Machine 255 | . 90 . 60 . . . . . 15 . . . . . . . . . . . . . . 15 15 45 15 . Destroy Structure 351 | . 37 19 14 17 31 24 3 7 2 . 38 . . . . . . 22 . . . . 40 16 21 33 27 . Advance Influence 300 | . . . . . . . . . . . . . . . . . . . . . . . 300 . . . . . Partial Spotted 285 | . . . . . . . 45 . . . 75 . . . . 15 . . . . . . 30 30 . 75 15 . Lose Combat Pursuer 1035 | . 45 . 45 . . 45 15 . . . 150 90 . . . . . . . 45 . 120 120 120 . 90 90 60 Influence Decreases 5402 | 40 535 341 614 494 564 205 106 150 10 7 106 172 81 139 60 42 3 63 27 20 35 90 162 339 214 255 455 73 Entered New Map 1782 | . . 171 28 240 98 75 76 76 . 5 . 72 21 139 . 12 2 . 11 . 25 . 62 239 184 105 135 6 Time Decay 3160 | 40 515 170 536 254 446 130 30 74 10 2 86 70 60 . 50 10 1 63 16 20 10 60 80 80 30 150 150 17 Lost Part 400 | . 20 . 10 . 20 . . . . . 20 30 . . 10 20 . . . . . 30 20 . . . 170 50 Lost Ally 60 | . . . 40 . . . . . . . . . . . . . . . . . . . . 20 . . . . Squads Dispatched 17 | . 5 . 1 1 1 1 . . . . 2 . . . . . . . . . . . . 2 . 2 1 1 Investigation 7 | . 2 . . 1 . 1 . . . . 2 . . . . . . . . . . . . 1 . . . . Extermination 4 | . . . . . . . . . . . . . . . . . . . . . . . . 1 . 2 1 . Reinforcement 6 | . 3 . 1 . 1 . . . . . . . . . . . . . . . . . . . . . . 1 Assault . | . . . . . . . . . . . . . . . . . . . . . . . . . . . . . Garrison . | . . . . . . . . . . . . . . . . . . . . . . . . . . . . . Intercept . | . . . . . . . . . . . . . . . . . . . . . . . . . . . . . Searches Triggered . | . . . . . . . . . . . . . . . . . . . . . . . . . . . . . Construction Impeded . | . . . . . . . . . . . . . . . . . . . . . . . . . . . . . Haulers Reinforced . | . . . . . . . . . . . . . . . . . . . . . . . . . . . . . Active Scanning Responses . | . . . . . . . . . . . . . . . . . . . . . . . . . . . . . Cargo Convoy Interrupts . | . . . . . . . . . . . . . . . . . . . . . . . . . . . . . Stealth | -11 -10 -10 -9 -9 -8 -7 -7 -7 -5 -5 -5 -5 -5 -5 -4 -4 -4 -4 -4 -4 -4 -3 -3 -3 -2 -2 -2 -1 --------- Run | Yrd Mat Min Mat Min Mat Fac Sto Rec Fac Was Fac Upp Upp War Pro Fac Was Fac Upp Upp Zhi Pro Res Tes Res Qua Frg Acc Distress Signals 21 | . 5 . 3 . 3 . 1 . . . . . . . . . . 1 . . . 1 2 1 1 1 1 1 Communications Jammed . | . . . . . . . . . . . . . . . . . . . . . . . . . . . . . Distress Signals . | . . . . . . . . . . . . . . . . . . . . . . . . . . . . . Times Spotted 304 | . 39 . 41 9 26 9 3 1 . 6 13 9 5 2 4 2 6 3 . 3 . 19 19 16 2 12 33 22 Peak Tracking Total 17 | . 4 . 5 4 4 6 2 1 . 6 7 5 5 2 4 1 6 3 . 3 . 7 17 6 3 7 16 16 Tactical Retreats 31 | . 2 . 1 . . 2 1 1 . . 3 3 . . . . . . . 1 . 2 3 3 . 3 4 2 Traps | -11 -10 -10 -9 -9 -8 -7 -7 -7 -5 -5 -5 -5 -5 -5 -4 -4 -4 -4 -4 -4 -4 -3 -3 -3 -2 -2 -2 -1 ------- Run | Yrd Mat Min Mat Min Mat Fac Sto Rec Fac Was Fac Upp Upp War Pro Fac Was Fac Upp Upp Zhi Pro Res Tes Res Qua Frg Acc Traps Triggered 18 | . 2 . . . . 1 . . 1 . . . . 3 . 1 . 1 . . . . . . 1 1 7 . Indirectly . | . . . . . . . . . . . . . . . . . . . . . . . . . . . . . Trap Hack Attempts . | . . . . . . . . . . . . . . . . . . . . . . . . . . . . . Triggered . | . . . . . . . . . . . . . . . . . . . . . . . . . . . . . Disarmed . | . . . . . . . . . . . . . . . . . . . . . . . . . . . . . Reprogrammed . | . . . . . . . . . . . . . . . . . . . . . . . . . . . . . Reused . | . . . . . . . . . . . . . . . . . . . . . . . . . . . . . Traps Extracted . | . . . . . . . . . . . . . . . . . . . . . . . . . . . . . Installed . | . . . . . . . . . . . . . . . . . . . . . . . . . . . . . Triggered . | . . . . . . . . . . . . . . . . . . . . . . . . . . . . . Machines | -11 -10 -10 -9 -9 -8 -7 -7 -7 -5 -5 -5 -5 -5 -5 -4 -4 -4 -4 -4 -4 -4 -3 -3 -3 -2 -2 -2 -1 ---------- Run | Yrd Mat Min Mat Min Mat Fac Sto Rec Fac Was Fac Upp Upp War Pro Fac Was Fac Upp Upp Zhi Pro Res Tes Res Qua Frg Acc Machines Disabled 18 | . 6 . 5 . . . . . 1 . . . . . . . . . . . . . . 1 1 3 1 . Max in Single Turn 2 | . 2 . 1 . . . . . 1 . . . . . . . . . . . . . . 1 1 1 1 . Garrison Access 2 | . . . . . . . . . . . . . . . . . . 1 . . . . . . . 1 . . Energy Cycler 1 | . . . . . . . . . . . . . . . . . . . . . . . . . . . . 1 Machines Repaired . | . . . . . . . . . . . . . . . . . . . . . . . . . . . . . Machines Dismantled . | . . . . . . . . . . . . . . . . . . . . . . . . . . . . . Machines Sabotaged . | . . . . . . . . . . . . . . . . . . . . . . . . . . . . . Overloaded Fab Kills . | . . . . . . . . . . . . . . . . . . . . . . . . . . . . . Hacking | -11 -10 -10 -9 -9 -8 -7 -7 -7 -5 -5 -5 -5 -5 -5 -4 -4 -4 -4 -4 -4 -4 -3 -3 -3 -2 -2 -2 -1 --------- Run | Yrd Mat Min Mat Min Mat Fac Sto Rec Fac Was Fac Upp Upp War Pro Fac Was Fac Upp Upp Zhi Pro Res Tes Res Qua Frg Acc Machines Accessed 85 | . 8 1 8 2 5 7 2 4 . . 7 1 1 . . 1 . 4 . . 9 . 1 6 4 12 2 . Terminals 55 | . 5 . 5 1 5 6 2 1 . . 6 . . . . 1 . 1 . . . . 1 5 4 10 2 . Fabricators . | . . . . . . . . . . . . . . . . . . . . . . . . . . . . . Repair Stations 3 | . 1 . 1 . . . . . . . . . . . . . . . . . . . . . . 1 . . Recycling Units 10 | . 2 . 2 . . . . 3 . . 1 . . . . . . 2 . . . . . . . . . . Scanalyzers . | . . . . . . . . . . . . . . . . . . . . . . . . . . . . . Garrison Access 4 | . . . . . . 1 . . . . . . . . . . . 1 . . . . . 1 . 1 . . Total Hacks 274 | . 32 1 27 3 13 22 5 13 . . 22 1 1 . . 5 . 11 . . 48 . 9 17 8 31 5 . Successful 140 | . 16 1 15 1 9 7 3 7 . . 7 1 1 . . 1 . 5 . . 48 . 4 4 . 9 1 . Failed 133 | . 15 . 12 2 4 15 2 6 . . 15 . . . . 4 . 6 . . . . 5 13 8 22 4 . Catastrophic 33 | . 2 . . . . 5 . 1 . . 6 . . . . 1 . 1 . . . . 1 4 5 7 . . Database Lockouts 1 | . 1 . . . . . . . . . . . . . . . . . . . . . . . . . . . Manual 107 | . 20 . 7 . 8 8 4 3 . . 13 . . . . 5 . 1 . . . . . 11 8 17 2 . Terminals 163 | . 21 . 14 2 13 17 5 2 . . 18 . . . . 5 . 3 . . . . 9 13 8 28 5 . Fabricators . | . . . . . . . . . . . . . . . . . . . . . . . . . . . . . Repair Stations 15 | . 6 . 8 . . . . . . . . . . . . . . . . . . . . . . 1 . . Recycling Units 30 | . 5 . 5 . . . . 11 . . 4 . . . . . . 5 . . . . . . . . . . Scanalyzers . | . . . . . . . . . . . . . . . . . . . . . . . . . . . . . Garrison Access 14 | . . . . . . 5 . . . . . . . . . . . 3 . . . . . 4 . 2 . . Terminal Hacks 103 | . 7 1 7 1 6 6 2 1 . . 4 1 1 . . . . 3 . . 48 . 4 2 . 8 1 . Record 51 | . . . 1 . . 3 1 . . . 3 . . . . . . 2 . . 36 . 2 1 . 1 1 . Part Schematic 4 | . . . . . . . . . . . . . . . . . . . . . 4 . . . . . . . Robot Analysis 13 | . 3 . 3 . . . . . . . 1 . . . . . . . . . 4 . . . . 2 . . Prototype ID Bank 4 | . . . . . . . . . . . . . . . . . . . . . 4 . . . . . . . Open Door 4 | . . 1 . 1 . . . . . . . 1 1 . . . . . . . . . . . . . . . Level Access Points 1 | . . . . . . . . . . . . . . . . . . . . . . . . . . 1 . . Branch Access Points 8 | . 1 . 1 . 1 1 1 . . . . . . . . . . 1 . . . . . 1 . 1 . . Terminal Index 2 | . 1 . . . . 1 . . . . . . . . . . . . . . . . . . . . . . Locate Traps 7 | . 1 . 1 . 2 . . 1 . . . . . . . . . . . . . . 1 . . 1 . . Transport Status 1 | . . . . . 1 . . . . . . . . . . . . . . . . . . . . . . . Recall Investigation 1 | . . . . . . . . . . . . . . . . . . . . . . . 1 . . . . . Hauler Manifests 5 | . 1 . 1 . 2 1 . . . . . . . . . . . . . . . . . . . . . . Zone Layout 2 | . . . . . . . . . . . . . . . . . . . . . . . . . . 2 . . Fabricator Hacks . | . . . . . . . . . . . . . . . . . . . . . . . . . . . . . Repair Station Hacks 10 | . 6 . 4 . . . . . . . . . . . . . . . . . . . . . . . . . Scan Component 5 | . 3 . 2 . . . . . . . . . . . . . . . . . . . . . . . . . Repair 5 | . 3 . 2 . . . . . . . . . . . . . . . . . . . . . . . . . Recycling Unit Hacks 12 | . 2 . 2 . . . . 5 . . 2 . . . . . . 1 . . . . . . . . . . Retrieve Components 12 | . 2 . 2 . . . . 5 . . 2 . . . . . . 1 . . . . . . . . . . Scanalyzer . | . . . . . . . . . . . . . . . . . . . . . . . . . . . . . Garrison Access Hacks 2 | . . . . . . . . . . . . . . . . . . 1 . . . . . . . 1 . . Seal Access 2 | . . . . . . . . . . . . . . . . . . 1 . . . . . . . 1 . . Unauthorized Hacks 13 | . 1 . 2 . 3 1 1 1 . . 1 . . . . 1 . . . . . . . 2 . . . . Terminals 11 | . 1 . 1 . 3 1 1 . . . 1 . . . . 1 . . . . . . . 2 . . . . Assimilate 6 | . . . . . 1 . 1 . . . 1 . . . . 1 . . . . . . . 2 . . . . Botnet 5 | . 1 . 1 . 2 1 . . . . . . . . . . . . . . . . . . . . . . Fabricators . | . . . . . . . . . . . . . . . . . . . . . . . . . . . . . Repair Stations . | . . . . . . . . . . . . . . . . . . . . . . . . . . . . . Recycling Units 2 | . . . 1 . . . . 1 . . . . . . . . . . . . . . . . . . . . Reject 2 | . . . 1 . . . . 1 . . . . . . . . . . . . . . . . . . . . Scanalyzers . | . . . . . . . . . . . . . . . . . . . . . . . . . . . . . Garrison Access . | . . . . . . . . . . . . . . . . . . . . . . . . . . . . . Data Cores Recovered 2 | . . . . . . . 1 . . . . . . . . . . . . . . . . . . 1 . . Used 1 | . . . . . . . . . . . . . . . . . . . . . . . . . . 1 . . Hacking Detections 63 | . 6 . 6 1 4 7 2 4 . . 6 . . . . 1 . 4 . . . . 1 6 4 9 2 . Full Trace Events 2 | . . . . . . . . . . . 2 . . . . . . . . . . . . . . . . . Feedback Events . | . . . . . . . . . . . . . . . . . . . . . . . . . . . . . Feedback Blocked . | . . . . . . . . . . . . . . . . . . . . . . . . . . . . . Robot Schematics Acquired . | . . . . . . . . . . . . . . . . . . . . . . . . . . . . . Robots Built . | . . . . . . . . . . . . . . . . . . . . . . . . . . . . . Authchips . | . . . . . . . . . . . . . . . . . . . . . . . . . . . . . Time . | . . . . . . . . . . . . . . . . . . . . . . . . . . . . . Total Robot Build Rating . | . . . . . . . . . . . . . . . . . . . . . . . . . . . . . Part Schematics Acquired 4 | . . . . . . . . . . . . . . . . . . . . . 4 . . . . . . . Parts Built . | . . . . . . . . . . . . . . . . . . . . . . . . . . . . . Authchips . | . . . . . . . . . . . . . . . . . . . . . . . . . . . . . Time . | . . . . . . . . . . . . . . . . . . . . . . . . . . . . . Total Part Build Rating . | . . . . . . . . . . . . . . . . . . . . . . . . . . . . . Parts Repaired 5 | . 3 . 2 . . . . . . . . . . . . . . . . . . . . . . . . . Time 148 | . 78 . 70 . . . . . . . . . . . . . . . . . . . . . . . . . Parts Recycled . | . . . . . . . . . . . . . . . . . . . . . . . . . . . . . Recycled Matter . | . . . . . . . . . . . . . . . . . . . . . . . . . . . . . Retrieved Matter . | . . . . . . . . . . . . . . . . . . . . . . . . . . . . . Retrieved Components 30 | . 13 . 12 . . . . 3 . . . . . . . . . 2 . . . . . . . . . . Parts Scanalyzed . | . . . . . . . . . . . . . . . . . . . . . . . . . . . . . Part Schematics Acquired . | . . . . . . . . . . . . . . . . . . . . . . . . . . . . . Parts Damaged . | . . . . . . . . . . . . . . . . . . . . . . . . . . . . . Bothacking | -11 -10 -10 -9 -9 -8 -7 -7 -7 -5 -5 -5 -5 -5 -5 -4 -4 -4 -4 -4 -4 -4 -3 -3 -3 -2 -2 -2 -1 ------------ Run | Yrd Mat Min Mat Min Mat Fac Sto Rec Fac Was Fac Upp Upp War Pro Fac Was Fac Upp Upp Zhi Pro Res Tes Res Qua Frg Acc Used RIF Installer . | . . . . . . . . . . . . . . . . . . . . . . . . . . . . . Robots Hacked . | . . . . . . . . . . . . . . . . . . . . . . . . . . . . . Non-combat . | . . . . . . . . . . . . . . . . . . . . . . . . . . . . . Combat . | . . . . . . . . . . . . . . . . . . . . . . . . . . . . . Robot Hacks Applied . | . . . . . . . . . . . . . . . . . . . . . . . . . . . . . Relay Couplers Released . | . . . . . . . . . . . . . . . . . . . . . . . . . . . . . Fabnet Peak Effective % . | . . . . . . . . . . . . . . . . . . . . . . . . . . . . . Robots Rewired 2 | . . . . . . . . 2 . . . . . . . . . . . . . . . . . . . . Allies Hacked . | . . . . . . . . . . . . . . . . . . . . . . . . . . . . . Hacks Repelled . | . . . . . . . . . . . . . . . . . . . . . . . . . . . . . Allies | -11 -10 -10 -9 -9 -8 -7 -7 -7 -5 -5 -5 -5 -5 -5 -4 -4 -4 -4 -4 -4 -4 -3 -3 -3 -2 -2 -2 -1 -------- Run | Yrd Mat Min Mat Min Mat Fac Sto Rec Fac Was Fac Upp Upp War Pro Fac Was Fac Upp Upp Zhi Pro Res Tes Res Qua Frg Acc Total Allies 8 | . . 2 . . . . . 2 . . 1 . . . . 1 . . . . . . . 2 . . . . Largest Group 2 | . . 2 2 . . . . 2 . . 1 . . . . 1 1 . . . . . . 2 . . . . Highest-Rated Group 72 | . . 41 38 . . . . 72 . . 26 . . . . 26 26 . . . . . . 36 . . . . Highest-Rated Ally 40 | . . 31 28 . . . . 40 . . 26 . . . . 26 26 . . . . . . 26 . . . . Total Orders . | . . . . . . . . . . . . . . . . . . . . . . . . . . . . . Ally Attacks 33 | . . 2 29 . . . . 2 . . . . . . . . . . . . . . . . . . . . Total Damage 474 | . . 41 396 . . . . 37 . . . . . . . . . . . . . . . . . . . . Kills 9 | . . . 8 . . . . 1 . . . . . . . . . . . . . . . . . . . . Allies Corrupted . | . . . . . . . . . . . . . . . . . . . . . . . . . . . . . Allies Melted . | . . . . . . . . . . . . . . . . . . . . . . . . . . . . . Intel | -11 -10 -10 -9 -9 -8 -7 -7 -7 -5 -5 -5 -5 -5 -5 -4 -4 -4 -4 -4 -4 -4 -3 -3 -3 -2 -2 -2 -1 ------- Run | Yrd Mat Min Mat Min Mat Fac Sto Rec Fac Was Fac Upp Upp War Pro Fac Was Fac Upp Upp Zhi Pro Res Tes Res Qua Frg Acc Active Infowar (turns) 6729 | 170 358 347 1834 367 1112 274 63 241 20 33 215 141 130 43 3 . 3 157 76 168 98 28 90 118 77 303 260 . Sensors 3012 | . . . . . 1112 274 63 241 20 33 125 . . . . . 3 157 76 168 98 28 . . 51 303 260 . Terrain 198 | 170 28 . . . . . . . . . . . . . . . . . . . . . . . . . . . Structural 3583 | . 205 32 811 367 426 269 63 241 20 33 215 141 130 43 3 . . . . . . . . 118 77 303 86 . Seismic 1693 | . 125 315 1163 . . . . . . . . . . . . . . . . . . . 90 . . . . . ECM 2 | . . . . . . . . . . . 2 . . . . . . . . . . . . . . . . . Robot Analysis Total 13 | . 3 . 3 . . . . . . . 1 . . . . . . . . . 4 . . . . 2 . . Derelict Logs Recovered 9 | . . 1 . 2 . . . . . . . 2 1 . . . . . 1 2 . . . . . . . . Drone Launches . | . . . . . . . . . . . . . . . . . . . . . . . . . . . . . Drone Recoveries . | . . . . . . . . . . . . . . . . . . . . . . . . . . . . . Exploration | -11 -10 -10 -9 -9 -8 -7 -7 -7 -5 -5 -5 -5 -5 -5 -4 -4 -4 -4 -4 -4 -4 -3 -3 -3 -2 -2 -2 -1 ------------- Run | Yrd Mat Min Mat Min Mat Fac Sto Rec Fac Was Fac Upp Upp War Pro Fac Was Fac Upp Upp Zhi Pro Res Tes Res Qua Frg Acc Turns Passed 8858 | 193 1589 347 1834 541 1114 275 63 241 20 33 215 141 130 43 105 27 42 296 76 168 98 123 178 167 77 303 313 106 Spaces Moved 11381 | 99 765 249 913 302 557 633 173 658 38 132 652 464 421 133 237 69 119 578 270 300 198 348 426 475 269 861 880 162 Core 253 | . . . . . . . . . . . . . . . . 1 . . . . . . . . . . 108 144 Treads 1125 | . 358 . 347 302 118 . . . . . . . . . . . . . . . . . . . . . . . Legs 122 | 99 23 . . . . . . . . . . . . . . . . . . . . . . . . . . . Wheels 1638 | . 384 249 566 . 439 . . . . . . . . . . . . . . . . . . . . . . . Hover 3 | . . . . . . . . . . . . . . . . . . . . . . . . . . . . 3 Flight 8240 | . . . . . . 633 173 658 38 132 652 464 421 133 237 68 119 578 270 300 198 348 426 475 269 861 772 15 Fastest Speed 7 | 120 90 120 120 160 130 25 25 25 25 25 22 25 25 25 37 30 30 26 26 26 25 15 12 13 7 16 16 34 Average Speed 54 | 120 137 120 140 160 139 27 25 25 25 25 24 25 25 25 37 34 33 32 26 26 25 24 21 22 18 22 26 49 Slowest Speed 240 | 120 195 120 240 160 240 28 25 25 25 25 25 28 25 100 37 200 34 104 26 26 29 25 25 23 19 23 50 100 Overloaded Moves 218 | . . . . . . . . . . . . . . . . . . . . . . 17 9 80 15 11 86 . Propulsion Burnouts . | . . . . . . . . . . . . . . . . . . . . . . . . . . . . . Robots Hopped 14 | . . . . . . . . . . . 1 . . . . 1 . . . . . 1 1 1 . 2 7 . Potential Cave-ins . | . . . . . . . . . . . . . . . . . . . . . . . . . . . . . Cave-ins Triggered . | . . . . . . . . . . . . . . . . . . . . . . . . . . . . . Teleports 1 | . . . . . . . . . . . . . . . . . . . . . . . . . . . 1 . Exploration Rate (%) 46 | 5 96 51 79 72 42 21 33 93 1 82 18 63 57 22 51 2 78 16 55 50 62 57 23 85 10 83 29 7 Regions Visited 28 Branch Regions 15 Pre-discovered Areas 5 | . . . . 1 . . . . . . . 1 . . . . . . . . 3 . . . . . . . Known Exits Taken 22 | . 1 . 1 1 1 1 1 1 . . 1 1 1 1 1 . . 1 1 1 1 1 1 1 1 1 1 . Unknown Exits Taken 2 | 1 . 1 . . . . . . . . . . . . . . . . . . . . . . . . . . Scrap Searched 10 | . . . . 1 . . . . . . . 1 1 . 2 . . . 3 1 . 1 . . . . . . Spaces Dug 108 | . . 1 . . . 13 3 6 1 . 10 1 . . . . . 11 . 5 . 1 20 8 7 12 9 . Terrain Destroyed 396 | . 49 28 16 19 30 32 3 6 1 . 21 1 16 . 59 . . 11 . 5 . 43 20 8 7 12 9 . Melee 105 | . . 1 . . . 13 3 6 1 . 10 1 . . . . . 11 . 5 . 1 20 8 7 9 9 . Projectile 11 | . . . . . 8 . . . . . . . . . . . . . . . . . . . . 3 . . AOE 280 | . 49 27 16 19 22 19 . . . . 11 . 16 . 59 . . . . . . 42 . . . . . . Terrain Rammed . | . . . . . . . . . . . . . . . . . . . . . . . . . . . . . Walls Destroyed . | . . . . . . . . . . . . . . . . . . . . . . . . . . . . . Machines Disabled . | . . . . . . . . . . . . . . . . . . . . . . . . . . . . . Actions | -11 -10 -10 -9 -9 -8 -7 -7 -7 -5 -5 -5 -5 -5 -5 -4 -4 -4 -4 -4 -4 -4 -3 -3 -3 -2 -2 -2 -1 --------- Run | Yrd Mat Min Mat Min Mat Fac Sto Rec Fac Was Fac Upp Upp War Pro Fac Was Fac Upp Upp Zhi Pro Res Tes Res Qua Frg Acc Total 13001 | 149 1087 283 1260 330 736 708 182 715 45 131 679 481 444 141 247 73 119 638 273 381 241 368 462 507 278 935 930 178 Wait 634 | 36 115 9 158 . 46 26 4 40 . . 7 12 9 8 . 5 . 8 2 77 15 3 2 13 . 24 14 1 Move 11330 | 98 764 248 912 301 556 632 172 657 38 131 649 463 420 132 236 67 118 577 269 299 197 345 423 472 268 856 868 162 Hop 11 | . . . . . . . . . . . 1 . . . . 1 . . . . . 1 1 1 . 2 4 . Pick Up 92 | 1 27 4 11 1 10 7 . . . . 1 2 4 . 1 . . 1 1 . 6 . 4 1 . 8 1 1 Fast Attach 88 | 1 11 2 13 2 6 1 . . 1 . 3 . . . . . 1 9 . . 8 . 3 3 1 6 6 11 Attach 52 | . 5 . 6 . 6 8 . . 3 . 1 . 4 1 1 . . 3 . . 1 2 1 . 1 2 7 . Detach 22 | . 2 . 1 . 1 1 . . . . 1 . 1 . 2 . . 4 . . 2 . . . . 4 3 . Swap 81 | . 14 5 26 6 10 1 . . . . . . 1 . . . . . . . 2 5 1 . . 2 8 . Drop 137 | . 28 6 29 4 17 11 . . 1 . 1 . 3 . . . . 4 . . 8 . 2 3 . 12 8 . Fire 373 | 13 119 8 104 16 83 4 . . . . . . 2 . 7 . . . . . . 11 . . . 3 . 3 Melee 174 | . 2 1 . . . 17 6 12 2 . 15 4 . . . . . 32 1 5 2 1 25 14 8 16 11 . Ram . | . . . . . . . . . . . . . . . . . . . . . . . . . . . . . Kick . | . . . . . . . . . . . . . . . . . . . . . . . . . . . . . Crush 1 | . . . . . 1 . . . . . . . . . . . . . . . . . . . . . . . Escape Stasis . | . . . . . . . . . . . . . . . . . . . . . . . . . . . . . Rewire 6 | . . . . . . . . 6 . . . . . . . . . . . . . . . . . . . . Trap . | . . . . . . . . . . . . . . . . . . . . . . . . . . . . . Miscellaneous . | . . . . . . . . . . . . . . . . . . . . . . . . . . . . . Route ------- -11/Scrapyard -10/Materials (discovered 5 exits: *Mat x3 / *Min / [Sub]) -10/Mines -9/Materials (discovered 4 exits: *Mat x3 / *Min) -9/Mines (discovered 3 exits: *Mat x2 / *Zio) -8/Materials -7/Factory (discovered 3 exits: *Sto / *Low x2) -7/Storage -7/Recycling -5/Factory -5/Waste -5/Factory (discovered 2 exits: *Upp x2) -5/Upper Caves -5/Upper Caves (discovered 2 exits: Fac / *War) -5/Warlord -4/Proximity Caves -4/Factory -4/Waste -4/Factory (discovered 3 exits: *Upp x2 / Arm) -4/Upper Caves -4/Upper Caves -4/Zhirov -3/Proximity Caves -3/Research -3/Testing -2/Research (discovered 2 exits: *Qua x2) -2/Quarantine (discovered 3 exits: *Acc / [*Sec] / *Frg) -2/Protoforge -1/Access History --------- Turn | Location | Event 7 | -11/Scrapyard | Discovered new exit (range 3) 194 | -11/Scrapyard | Entered Materials 311 | -10/Materials | Build established: Mutant 626 | -10/Materials | Discovered new exit (range 16) 642 | -10/Materials | Discovered new exit (range 6) 734 | -10/Materials | Repaired Lgt. Treads 762 | -10/Materials | Repaired Lgt. Armor Plating 789 | -10/Materials | Repaired Lgt. Treads 956 | -10/Materials | Discovered new exit (range 13) 1323 | -10/Materials | Discovered new exit (range 12) 1451 | -10/Materials | Central database locked down 1465 | -10/Materials | Identified exit to Mines 1617 | -10/Materials | Discovered new exit (range 12) 1783 | -10/Materials | Entered Mines 1855 | -10/Mines | Met a Derelict who couldn't figure out how to use a Trap Extractor 2002 | -10/Mines | Learned 4 Materials zone layouts 2003 | -10/Mines | Discovered new exit (range 9) 2130 | -10/Mines | Entered Materials 2130 | -9/Materials | Accompanied by 2 allies 2130 | -9/Materials | Evolved 2 slots: Propulsion x1, Utility x1 2131 | -9/Materials | Identified exit to Materials 2135 | -9/Materials | Led the pair of lost Derelicts to an unsafe place 2180 | -9/Materials | Identified exit to Mines 2696 | -9/Materials | Build established: Scavenger-Mutant 3027 | -9/Materials | Repaired Lgt. Nuclear Core 3060 | -9/Materials | Repaired Hrd. Light Armor Plating 3198 | -9/Materials | Discovered exit to Materials (range 10) 3502 | -9/Materials | Discovered exit to Materials (range 6) 3964 | -9/Materials | Entered Mines 4099 | -9/Mines | Learned 2 Materials zone layouts 4104 | -9/Mines | Discovered exit to Materials (range 10) 4222 | -9/Mines | Discovered exit to Materials (range 15) 4229 | -9/Mines | Learned location of Storage (-7) 4322 | -9/Mines | A Derelict revealed a hidden shortcut to a safe place 4332 | -9/Mines | Identified exit to Zion 4378 | -9/Mines | Met a Derelict shopkeep closing up shop 4382 | -9/Mines | Learned location of 1 exit from Lower Caves 4505 | -9/Mines | Entered Materials 4505 | -8/Materials | Evolved 2 slots: Propulsion x1, Utility x1 5104 | -8/Materials | Discovered new exit (range 15) 5501 | -8/Materials | Build established: Scavenger-Skirmisher 5618 | -8/Materials | Identified exit to Factory 5619 | -8/Materials | Entered Factory 5619 | -7/Factory | Evolved 2 slots: Propulsion x1, Utility x1 5666 | -7/Factory | Identified exit to Storage 5666 | -7/Factory | Identified exit to Lower Caves 5894 | -7/Factory | Entered Storage 5901 | -7/Storage | Identified exit to Recycling 5921 | -7/Storage | Build established: Scavenger-Scout 5947 | -7/Storage | Used back door to open Recycling access 5957 | -7/Storage | Entered Recycling 6039 | -7/Recycling | Discovered new exit (range 9) 6091 | -7/Recycling | Scanned before Scraplab entrance 6101 | -7/Recycling | Angered Scraplab inhabitants 6197 | -7/Recycling | Identified exit to Factory 6198 | -7/Recycling | Entered Factory 6198 | -5/Factory | Evolved 4 slots: Propulsion x1, Utility x3 6218 | -5/Factory | Sucked down chute 6218 | -5/Factory | Entered Waste 6221 | -5/Waste | Spotted C-40 Crusher 6226 | -5/Waste | Spotted C-40 Crusher 6227 | -5/Waste | Spotted C-40 Crusher 6227 | -5/Waste | Spotted C-40 Crusher 6228 | -5/Waste | Spotted C-40 Crusher 6232 | -5/Waste | Spotted C-40 Crusher 6233 | -5/Waste | EMP discharged 6249 | -5/Waste | Discovered new exit (range 11) 6251 | -5/Waste | Identified exit to Factory 6251 | -5/Waste | Entered Factory 6333 | -5/Factory | Discovered new exit (range 12) 6420 | -5/Factory | Discovered new exit (range 9) 6422 | -5/Factory | Identified exit to Upper Caves 6466 | -5/Factory | Entered Upper Caves 6499 | -5/Upper Caves | Learned location of Armory (-4) 6514 | -5/Upper Caves | Spotted B-75 Beast 6524 | -5/Upper Caves | Learned Factory emergency access door positions 6604 | -5/Upper Caves | Discovered new exit (range 15) 6607 | -5/Upper Caves | Identified exit to Upper Caves 6607 | -5/Upper Caves | Entered another Upper Caves area 6637 | -5/Upper Caves | Lost 3 parts (1p2n) 6665 | -5/Upper Caves | Build established: Hacker-Sprinter 6675 | -5/Upper Caves | Identified exit to Factory 6684 | -5/Upper Caves | Spotted B-75 Beast 6720 | -5/Upper Caves | Encountered a Warlord checkpoint 6723 | -5/Upper Caves | Discovered new exit (range 9) 6725 | -5/Upper Caves | Identified exit to Warlord 6737 | -5/Upper Caves | Entered Warlord 6749 | -5/Warlord | Discovered new exit (range 15) 6755 | -5/Warlord | System corruption cleaned by Quarantine Array 6756 | -5/Warlord | Attacked by Warlord forces 6758 | -5/Warlord | Spotted 0P-I0C(B) 6758 | -5/Warlord | Spotted CO-X4C(B) 6780 | -5/Warlord | Identified exit to Proximity Caves 6780 | -5/Warlord | Entered Proximity Caves 6817 | -4/Proximity Caves | Lost 6 parts (1p2n3u) 6821 | -4/Proximity Caves | Spotted B-86 Titan 6879 | -4/Proximity Caves | Discovered exit to Factory (range 11) 6885 | -4/Proximity Caves | Entered Factory 6885 | -4/Factory | Evolved 2 slots: Power x1, Propulsion x1 6912 | -4/Factory | Sucked down chute 6912 | -4/Factory | Entered Waste 6917 | -4/Waste | 1 allies followed down the chute 6918 | -4/Waste | Spotted C-40 Crusher 6921 | -4/Waste | Spotted C-40 Crusher 6934 | -4/Waste | Spotted C-40 Crusher 6936 | -4/Waste | Spotted C-40 Crusher 6937 | -4/Waste | Spotted C-40 Crusher 6945 | -4/Waste | Spotted C-40 Crusher 6948 | -4/Waste | Discovered new exit (range 11) 6954 | -4/Waste | Entered Factory 7214 | -4/Factory | Identified exit to Upper Caves 7214 | -4/Factory | Identified exit to Armory 7250 | -4/Factory | Entered Upper Caves 7253 | -4/Upper Caves | Learned Research terminal intel 7325 | -4/Upper Caves | Discovered new exit (range 6) 7326 | -4/Upper Caves | Identified exit to Upper Caves 7326 | -4/Upper Caves | Entered another Upper Caves area 7435 | -4/Upper Caves | Learned 4 Research zone layouts 7491 | -4/Upper Caves | Discovered new exit (range 9) 7493 | -4/Upper Caves | Identified exit to Zhirov 7494 | -4/Upper Caves | Entered Zhirov 7494 | -4/Zhirov | Discovered new exit (range 3) 7499 | -4/Zhirov | Met Zhirov 7504 | -4/Zhirov | Learned location of Quarantine (-2) 7504 | -4/Zhirov | Learned location of Testing (-3) 7504 | -4/Zhirov | Learned location of Command (-1) 7510 | -4/Zhirov | Zhirov requested help retrieving the SGEMP Prototype 7516 | -4/Zhirov | Found Alien Artifact 7516 | -4/Zhirov | Identified Integrated Dissipator 7516 | -4/Zhirov | Installed Integrated Dissipator, increased core heat dissipation (+20) 7523 | -4/Zhirov | Found Alien Artifact 7592 | -4/Zhirov | Identified exit to Proximity Caves 7592 | -4/Zhirov | Entered Proximity Caves 7650 | -3/Proximity Caves | Destroyed 7 combat bots 7674 | -3/Proximity Caves | Attracted the attention of an 0b10 base 7686 | -3/Proximity Caves | Spotted B-86 Titan 7695 | -3/Proximity Caves | Spotter reported a threat 7695 | -3/Proximity Caves | Spotter reported a threat 7705 | -3/Proximity Caves | Discovered new exit (range 9) 7707 | -3/Proximity Caves | Identified exit to Research 7715 | -3/Proximity Caves | Entered Research 7715 | -3/Research | Evolved 2 slots: Propulsion x1, Utility x1 7716 | -3/Research | Identified exit to Testing 7717 | -3/Research | Loaded intel: 22 terminal locations 7807 | -3/Research | Spotted B-86 Titan 7831 | -3/Research | Spotted B-86 Titan 7893 | -3/Research | Entered Testing 7961 | -3/Testing | Spotted Striker 7961 | -3/Testing | Spotted Striker 8019 | -3/Testing | Spotted PX-SNIZ30XL3P 8027 | -3/Testing | Found Prototype Hackware 8027 | -3/Testing | Identified Ghost Barrier 8040 | -3/Testing | Discovered new exit (range 16) 8060 | -3/Testing | Identified exit to Research 8060 | -3/Testing | Entered Research 8060 | -2/Research | Evolved 2 slots: Propulsion x1, Utility x1 8061 | -2/Research | Identified exit to Quarantine 8135 | -2/Research | Discovered exit to Quarantine (range 16) 8135 | -2/Research | Spotted B-90 Cyclops 8137 | -2/Research | Entered Quarantine 8146 | -2/Quarantine | Found Alien Energy Cannon 8146 | -2/Quarantine | Identified Core Cannon 8155 | -2/Quarantine | Found Alien Slashing Weapon 8155 | -2/Quarantine | Identified Sigix Broadsword 8196 | -2/Quarantine | Identified exit to Access 8370 | -2/Quarantine | Found Alien Artifact 8423 | -2/Quarantine | Spotted Fortress 8438 | -2/Quarantine | Discovered new exit (range 6) 8438 | -2/Quarantine | Discovered new exit (range 7) 8439 | -2/Quarantine | Identified exit to Protoforge 8440 | -2/Quarantine | Entered Protoforge 8528 | -2/Protoforge | Superfortress began startup sequence 8548 | -2/Protoforge | Discovered exit to Access (range 12) 8621 | -2/Protoforge | Found Prototype Device 8621 | -2/Protoforge | Identified Cep. Antimissile System 8677 | -2/Protoforge | Spotted Decapitator 8677 | -2/Protoforge | Spotted V838-l 8677 | -2/Protoforge | Spotted V660-c 8677 | -2/Protoforge | Spotted Decapitator 8688 | -2/Protoforge | Found Prototype Storage 8688 | -2/Protoforge | Identified Cep. Antigrav Storage Unit 8692 | -2/Protoforge | Found Prototype Device 8692 | -2/Protoforge | Identified Cep. Matter Streamer 8695 | -2/Protoforge | Spotted V572-l 8699 | -2/Protoforge | Identified Transdimensional Reconstructor 8699 | -2/Protoforge | Warped through subspace 8700 | -2/Protoforge | Released all parts (7) 8708 | -2/Protoforge | Core integrity fell below 50% 8711 | -2/Protoforge | System corruption reached 10% 8730 | -2/Protoforge | Lost 17 parts (3p8n5u1w) 8753 | -2/Protoforge | Entered Access 8753 | -1/Access | Evolved 2 slots: Utility x2 8820 | -1/Access | Energy Cycler disabled 8830 | -1/Access | Core integrity fell below 50% 8841 | -1/Access | Lost 6 parts (4n1u1w) 8850 | -1/Access | Core integrity fell below 20% 8859 | -1/Access | Destroyed by G-73 Enforcer with Phase Gun Last Messages --------------- 08820_ Energy Cycler explodes. 08825_ M-36 Artificer repairs S-43 Plague Xenon Bombardment Thruster. 08829_ M-36 Artificer repairs S-43 Plague. 08830_ O-32 Director: "IFF HANDSHAKE FAILED. SECURING TERMINAL." 08835_ A-15 Conveyor destroyed. 08839_ ALERT: Hostiles spotted, dispatching reinforcements to Terminal A010. 08844_ Acquired Impulse Thruster. 08846_ Penetrated by Slug. 08846_ Acquired Impulse Thruster. 08851_ Impulse Thruster destroyed. 08851_ S-43 Plague destroyed. 08852_ Penetrated by Slug. 08852_ Impulse Thruster destroyed. 08852_ Acquired Impulse Thruster. 08854_ Impulse Thruster destroyed. 08855_ Penetrated by Slug. 08857_ Impulse Thruster destroyed. Map ----- +----------------------------------------------------+ | ?????????????????????????????????????????????????? | | ?????????????????????????????????????????????????? | | ?????????????????????????????????????????????????? | | ?????????????????????????????????????????????????? | | ?????????????????????????????????????????????????? | | ?????????????????????????????????????????????????? | | ?????????????????????????????????????????????????? | | ?????????????????????????????????????????????????? | | ?????????????????????????????????????????????????? | | ?????????????????????????????????????????????????? | | ?????????????????????????????????????????????????? | | ???????????????????????????????????????????????# ? | | ???????????????????????????????????????????????# | | ???????????????????????????????????????????????# | | ???????????????????????????????????????????????# | | ???????????????????????????????????????????????# | | ???????????????????????????????????????????????# | | ???????????????????????????????????????????????# | | ???????????????????????????????????????????????# | | ???????????????????????????????????????????????# | | ??????????????????????####+##################### | | ??????????????????????# | | ??????????????????????# | | ??????????????????????# g g | | ??????????????????????# g g | | ??????????????????????# @ gm *[* | | ??????????????????????# s [%! | | ??????????????????????# g g A *!! | | ????????????????????###s##;#############+######### | | ????????????????????# * ## #???# | | ????????????????????# % ## #???# | | ????????????????????# = "" ## " #???# | | ????????????????????# == """## """ #???# | | ????????????????????# = T"## """ #???# | | ????????????????????# ! """## " #???# | | ????????????????????# "" ## #???# | | ????????????????????# ## #???# | | ????????????????????# ## #???# | | ???????????????????# #?? #???# | | ???????????????????## #???? #???# | | ????????????????????# #????" "" #???# | | ????????????????????##############????"R"" #???## | | ?????????????????????????????????????????? #????? | | ?????????????????????????????????????????? #????? | | ?????????????????????????????????????????? ?????? | | ?????????????????????????????????????????????????? | | ?????????????????????????????????????????????????? | | ?????????????????????????????????????????????????? | | ?????????????????????????????????????????????????? | | ?????????????????????????????????????????????????? | +----------------------------------------------------+ Best States ------------- Heat Dissipation 72 Energy Generation 37 Energy Capacity 350 Matter Stores 300 Matter Capacity 300 Sight Range 16 Robot Scan Range 18 Terrain Scan Range 16 Terrain Scan Density 10 ECM Strength 2 Power Amplification 40 Armor Coverage 450 Propulsion Shielding 90 Weapon Shielding 33 Evasion (%) 78 Recoil Reduction 3 Offensive Hacking 30 Defensive Hacking 32 Item Schematics ----------------- Assault Drone Bay | -4/Zhirov | Free Exp. Heat Sink | -4/Zhirov | Free Exp. Optical Array | -4/Zhirov | Free Imp. Arc Thrower | -4/Zhirov | Free Robot Schematics ------------------ None Fabricated ------------ Nothing Repaired ---------- Lgt. Treads | 4% | -10/Materials Lgt. Armor Plating | 23% | -10/Materials Lgt. Treads | 37% | -10/Materials Lgt. Nuclear Core | 6% | -9/Materials Hrd. Light Armor Plating | 30% | -9/Materials Alien Tech Used ----------------- Integrated Dissipator Core Cannon Sigix Broadsword Transdimensional Reconstructor Achievements -------------- Below Dramatic Entrance Dynamic Key Maybe Next Time I'll Detach My Launcher Speed Demon System Compromised Challenges ------------ None Game ------ Seed PulseSlugSuite Manual? 0 Play Time 04:36:50 Cumulative 29.7 hours Start 2025.07.10 @ 14:14:59 End 2025.07.13 @ 09:06:33 Sessions 7 Manual Loads 0 Difficulty Rogue Special Mode None Game No. 11 Rogue 11 Adventurer 0 Explorer 0 Win Type - Total 3 Types 2/0/1/0/0/0/0/0/0/0 Lore% 30 Gallery% 17 Achievement% 34 Wizard Run 0 Options --------- Layout 1 ASCII 0 Keyboard 0 Movement Mouse Keybinds 0 Fullscreen 1 Font 24/Smallcaps Map View 50x35 Zoom Use 0% Tactical HUD 1 Map Filters NONE Filters NONE Steam 1 RUN: 4fb10ed9-c9b6-426f-85c2-4143eaf9d582